Workbook

Sheet Politique EP Ets
A2: Politique promotionnelle de l'établissement
A4: Etablissement demandeur : | B4: Choisir dans la liste
A5: Personne en charge du dossier :
A6: Nombre de demandes de financement présentées :
A7: Date CSE :
A8: Avis CSE :
A10: La politique de mutualisation régionale Occitanie vise à augmenter les départs d'agent en promotion afin de répondre au besoin en personnel formé.
A11: L'attribution des fonds mutualisés dédiés aux études promotionnelles est soumise aux efforts de financement prévus sur votre plan de formation. Afin d'évaluer cet effort, nous vous demandons de nous communiquer la politique promotionnelle mise en œuvre et d'indiquer le volume financier consacré aux EP :
A12: Description de la politique promotionnelle de l'établissement :
A16: Description du financement de la politique promotionnelle (uniquement les départs 1er semestre 2024) :
B17: N | C17: N+1 | D17: N+2 | E17: N+3 | F17: TOTAL
A18: Montant financé sur le Plan | F18: =SUM(B18:E18) -> 0
A19: Montant demandé à la mutualisation | F19: =SUM(B19:E19) -> 0
A21: Le Directeur de l'établissement :
A23: Fait à
A24: le
D26: Cachet établissement / signature ordonnateur

Sheet EP 1
C2: DOSSIER EP | G2: Date limite de dépôt : 17/11/2023
A4: Etablissement demandeur : | C4: Choisir dans la liste
A6: Descriptif de la demande
A7: Priorité du dossier : N° | I7: Précisions Particulières :
A8: NOM- Prénom : | E8: Grade : | F8: Choisir dans la liste | G8: N°INSEE agent : | I8: ASH ayant bénéficié de la formation 70h
A9: Intitulé de la formation / Diplôme visé : | B9: Choisir dans la liste | E9: Forfait de référence : | F9: =IF(F8="Choisir dans la liste","",IF(D10>0,"21,61",VLOOKUP(F8,'LISTE DES GRADES ET CATEGORIES'!A5:B20,2,FALSE))) ->  | I9: Formation complète
A10: Si formation inférieure à 52 jours, préciser nombre d'heures : | I10: Au-delà des 720 jours CFP
A11: Durée scolarité en mois : | B11: =IF(B9="Choisir dans la liste","",IF(D10>0,"",VLOOKUP(B9,diplomes,6,FALSE))) ->  | C11: Durée scolarité en jours : | E11: =IF(B9="Choisir dans la liste","",VLOOKUP(B9,'LISTE DES DIPLOMES EP + DUREE'!B3:F34,5,FALSE)) ->  | G11: Date résultat école : | I11: Module à repasser
A12: Date début : | D12: Date Fin : | G12: Lieu : | I12: Redoublement
A13: Organisme de formation : | I13: Dernier report avant perte bénéfice concours
A14: Coût Réel de la scolarité
A15: ANNEE | B15: ENSEIGNEMENT | D15: RESERVE ANFH | E15: DEPLACEMENT | F15: RESERVE ANFH | G15: SALAIRES DE L'AGENT | H15: RESERVE ANFH | I15: TOTAL | J15: RESERVE ANFH
B16: Inscription | C16: Pédagogie
A17: N | G17: =IF($B$9="Choisir dans la liste",0,IF($D$10>0,0,VLOOKUP($B$9,'LISTE DES DIPLOMES EP + DUREE'!$B$3:$L$34,7,FALSE)*$F$9)) -> 0 | I17: =IF($B$9="Choisir dans la liste","",IF(G17=0,0,B17+C17+E17+G17)) -> 
A18: N+1 | G18: =IF($B$9="Choisir dans la liste",0,IF($D$10>0,0,VLOOKUP($B$9,'LISTE DES DIPLOMES EP + DUREE'!$B$3:$L$34,8,FALSE)*$F$9)) -> 0 | I18: =IF($B$9="Choisir dans la liste","",IF(G18=0,0,B18+C18+E18+G18)) -> 
A19: N+2 | G19: =IF($B$9="Choisir dans la liste",0,IF($D$10>0,0,VLOOKUP($B$9,'LISTE DES DIPLOMES EP + DUREE'!$B$3:$L$34,9,FALSE)*$F$9)) -> 0 | I19: =IF($B$9="Choisir dans la liste","",IF(G19=0,0,B19+C19+E19+G19)) -> 
A20: N+3 | G20: =IF($B$9="Choisir dans la liste",0,IF($D$10>0,0,VLOOKUP($B$9,'LISTE DES DIPLOMES EP + DUREE'!$B$3:$L$34,10,FALSE)*$F$9)) -> 0 | I20: =IF($B$9="Choisir dans la liste","",IF(G20=0,0,B20+C20+E20+G20)) -> 
A21: N+4 | G21: =IF($B$9="Choisir dans la liste",0,IF($D$10>0,0,VLOOKUP($B$9,'LISTE DES DIPLOMES EP + DUREE'!$B$3:$L$34,11,FALSE)*$F$9)) -> 0 | I21: =IF($B$9="Choisir dans la liste","",IF(G21=0,0,B21+C21+E21+G21)) -> 
A22: Total | B22: =SUM(B17:B21) -> 0 | C22: =SUM(C17:C21) -> 0 | E22: =SUM(E17:E21) -> 0 | G22: =IF(B9="Choisir dans la liste","",IF(D10>0,"",IF(G17=0,"Coûts ventilés par l'ANFH",G17+G18+G19+G20+G21))) ->  | H22: =IF(G17>0,0,IF(B11="",D10*F9,B11*F9)) ->  | I22: =IF(G17=0,B22+C22+E22+H22,SUM(I17:I21)) -> 
B25: Financement sur vos crédits | E25: =I22-I25 ->  | G25: Financement demandé à l'ANFH

Sheet EP 2
C2: DOSSIER EP | G2: Date limite de dépôt : 17/11/2023
A4: Etablissement demandeur : | C4: Choisir dans la liste
A6: Descriptif de la demande
A7: Priorité du dossier : N° | I7: Précisions Particulières :
A8: NOM- Prénom : | E8: Grade : | F8: Choisir dans la liste | G8: N°INSEE agent : | I8: ASH ayant bénéficié de la formation 70h
A9: Intitulé de la formation / Diplôme visé : | B9: Choisir dans la liste | E9: Forfait de référence : | F9: =IF(F8="Choisir dans la liste","",IF(D10>0,"21,61",VLOOKUP(F8,'LISTE DES GRADES ET CATEGORIES'!A5:B20,2,FALSE))) ->  | I9: Formation complète
A10: Si formation inférieure à 52 jours, préciser nombre d'heures : | I10: Au-delà des 720 jours CFP
A11: Durée scolarité en mois : | B11: =IF(B9="Choisir dans la liste","",IF(D10>0,"",VLOOKUP(B9,diplomes,6,FALSE))) ->  | C11: Durée scolarité en jours : | E11: =IF(B9="Choisir dans la liste","",VLOOKUP(B9,'LISTE DES DIPLOMES EP + DUREE'!B3:F34,5,FALSE)) ->  | G11: Date résultat école : | I11: Module à repasser
A12: Date début : | D12: Date Fin : | G12: Lieu : | I12: Redoublement
A13: Organisme de formation : | I13: Dernier report avant perte bénéfice concours
A14: Coût Réel de la scolarité
A15: ANNEE | B15: ENSEIGNEMENT | D15: RESERVE ANFH | E15: DEPLACEMENT | F15: RESERVE ANFH | G15: SALAIRES DE L'AGENT | H15: RESERVE ANFH | I15: TOTAL | J15: RESERVE ANFH
B16: Inscription | C16: Pédagogie
A17: N | G17: =IF($B$9="Choisir dans la liste",0,IF($D$10>0,0,VLOOKUP($B$9,'LISTE DES DIPLOMES EP + DUREE'!$B$3:$L$34,7,FALSE)*$F$9)) -> 0 | I17: =IF($B$9="Choisir dans la liste","",IF(G17=0,0,B17+C17+E17+G17)) -> 
A18: N+1 | G18: =IF($B$9="Choisir dans la liste",0,IF($D$10>0,0,VLOOKUP($B$9,'LISTE DES DIPLOMES EP + DUREE'!$B$3:$L$34,8,FALSE)*$F$9)) -> 0 | I18: =IF($B$9="Choisir dans la liste","",IF(G18=0,0,B18+C18+E18+G18)) -> 
A19: N+2 | G19: =IF($B$9="Choisir dans la liste",0,IF($D$10>0,0,VLOOKUP($B$9,'LISTE DES DIPLOMES EP + DUREE'!$B$3:$L$34,9,FALSE)*$F$9)) -> 0 | I19: =IF($B$9="Choisir dans la liste","",IF(G19=0,0,B19+C19+E19+G19)) -> 
A20: N+3 | G20: =IF($B$9="Choisir dans la liste",0,IF($D$10>0,0,VLOOKUP($B$9,'LISTE DES DIPLOMES EP + DUREE'!$B$3:$L$34,10,FALSE)*$F$9)) -> 0 | I20: =IF($B$9="Choisir dans la liste","",IF(G20=0,0,B20+C20+E20+G20)) -> 
A21: N+4 | G21: =IF($B$9="Choisir dans la liste",0,IF($D$10>0,0,VLOOKUP($B$9,'LISTE DES DIPLOMES EP + DUREE'!$B$3:$L$34,11,FALSE)*$F$9)) -> 0 | I21: =IF($B$9="Choisir dans la liste","",IF(G21=0,0,B21+C21+E21+G21)) -> 
A22: Total | B22: =SUM(B17:B21) -> 0 | C22: =SUM(C17:C21) -> 0 | E22: =SUM(E17:E21) -> 0 | G22: =IF(B9="Choisir dans la liste","",IF(D10>0,"",IF(G17=0,"Coûts ventilés par l'ANFH",G17+G18+G19+G20+G21))) ->  | H22: =IF(G17>0,0,IF(B11="",D10*F9,B11*F9)) ->  | I22: =IF(G17=0,B22+C22+E22+H22,SUM(I17:I21)) -> 
B25: Financement sur vos crédits | E25: =I22-I25 ->  | G25: Financement demandé à l'ANFH

Sheet EP 3
C2: DOSSIER EP | G2: Date limite de dépôt : 17/11/2023
A4: Etablissement demandeur : | C4: Choisir dans la liste
A6: Descriptif de la demande
A7: Priorité du dossier : N° | I7: Précisions Particulières :
A8: NOM- Prénom : | E8: Grade : | F8: Choisir dans la liste | G8: N°INSEE agent : | I8: ASH ayant bénéficié de la formation 70h
A9: Intitulé de la formation / Diplôme visé : | B9: Choisir dans la liste | E9: Forfait de référence : | F9: =IF(F8="Choisir dans la liste","",IF(D10>0,"21,61",VLOOKUP(F8,'LISTE DES GRADES ET CATEGORIES'!A5:B20,2,FALSE))) ->  | I9: Formation complète
A10: Si formation inférieure à 52 jours, préciser nombre d'heures : | I10: Au-delà des 720 jours CFP
A11: Durée scolarité en mois : | B11: =IF(B9="Choisir dans la liste","",IF(D10>0,"",VLOOKUP(B9,diplomes,6,FALSE))) ->  | C11: Durée scolarité en jours : | E11: =IF(B9="Choisir dans la liste","",VLOOKUP(B9,'LISTE DES DIPLOMES EP + DUREE'!B3:F34,5,FALSE)) ->  | G11: Date résultat école : | I11: Module à repasser
A12: Date début : | D12: Date Fin : | G12: Lieu : | I12: Redoublement
A13: Organisme de formation : | I13: Dernier report avant perte bénéfice concours
A14: Coût Réel de la scolarité
A15: ANNEE | B15: ENSEIGNEMENT | D15: RESERVE ANFH | E15: DEPLACEMENT | F15: RESERVE ANFH | G15: SALAIRES DE L'AGENT | H15: RESERVE ANFH | I15: TOTAL | J15: RESERVE ANFH
B16: Inscription | C16: Pédagogie
A17: N | G17: =IF($B$9="Choisir dans la liste",0,IF($D$10>0,0,VLOOKUP($B$9,'LISTE DES DIPLOMES EP + DUREE'!$B$3:$L$34,7,FALSE)*$F$9)) -> 0 | I17: =IF($B$9="Choisir dans la liste","",IF(G17=0,0,B17+C17+E17+G17)) -> 
A18: N+1 | G18: =IF($B$9="Choisir dans la liste",0,IF($D$10>0,0,VLOOKUP($B$9,'LISTE DES DIPLOMES EP + DUREE'!$B$3:$L$34,8,FALSE)*$F$9)) -> 0 | I18: =IF($B$9="Choisir dans la liste","",IF(G18=0,0,B18+C18+E18+G18)) -> 
A19: N+2 | G19: =IF($B$9="Choisir dans la liste",0,IF($D$10>0,0,VLOOKUP($B$9,'LISTE DES DIPLOMES EP + DUREE'!$B$3:$L$34,9,FALSE)*$F$9)) -> 0 | I19: =IF($B$9="Choisir dans la liste","",IF(G19=0,0,B19+C19+E19+G19)) -> 
A20: N+3 | G20: =IF($B$9="Choisir dans la liste",0,IF($D$10>0,0,VLOOKUP($B$9,'LISTE DES DIPLOMES EP + DUREE'!$B$3:$L$34,10,FALSE)*$F$9)) -> 0 | I20: =IF($B$9="Choisir dans la liste","",IF(G20=0,0,B20+C20+E20+G20)) -> 
A21: N+4 | G21: =IF($B$9="Choisir dans la liste",0,IF($D$10>0,0,VLOOKUP($B$9,'LISTE DES DIPLOMES EP + DUREE'!$B$3:$L$34,11,FALSE)*$F$9)) -> 0 | I21: =IF($B$9="Choisir dans la liste","",IF(G21=0,0,B21+C21+E21+G21)) -> 
A22: Total | B22: =SUM(B17:B21) -> 0 | C22: =SUM(C17:C21) -> 0 | E22: =SUM(E17:E21) -> 0 | G22: =IF(B9="Choisir dans la liste","",IF(D10>0,"",IF(G17=0,"Coûts ventilés par l'ANFH",G17+G18+G19+G20+G21))) ->  | H22: =IF(G17>0,0,IF(B11="",D10*F9,B11*F9)) ->  | I22: =IF(G17=0,B22+C22+E22+H22,SUM(I17:I21)) -> 
B25: Financement sur vos crédits | E25: =I22-I25 ->  | G25: Financement demandé à l'ANFH

Sheet EP 4
C2: DOSSIER EP | G2: Date limite de dépôt : 17/11/2023
A4: Etablissement demandeur : | C4: Choisir dans la liste
A6: Descriptif de la demande
A7: Priorité du dossier : N° | I7: Précisions Particulières :
A8: NOM- Prénom : | E8: Grade : | F8: Choisir dans la liste | G8: N°INSEE agent : | I8: ASH ayant bénéficié de la formation 70h
A9: Intitulé de la formation / Diplôme visé : | B9: Choisir dans la liste | E9: Forfait de référence : | F9: =IF(F8="Choisir dans la liste","",IF(D10>0,"21,61",VLOOKUP(F8,'LISTE DES GRADES ET CATEGORIES'!A5:B20,2,FALSE))) ->  | I9: Formation complète
A10: Si formation inférieure à 52 jours, préciser nombre d'heures : | I10: Au-delà des 720 jours CFP
A11: Durée scolarité en mois : | B11: =IF(B9="Choisir dans la liste","",IF(D10>0,"",VLOOKUP(B9,diplomes,6,FALSE))) ->  | C11: Durée scolarité en jours : | E11: =IF(B9="Choisir dans la liste","",VLOOKUP(B9,'LISTE DES DIPLOMES EP + DUREE'!B3:F34,5,FALSE)) ->  | G11: Date résultat école : | I11: Module à repasser
A12: Date début : | D12: Date Fin : | G12: Lieu : | I12: Redoublement
A13: Organisme de formation : | I13: Dernier report avant perte bénéfice concours
A14: Coût Réel de la scolarité
A15: ANNEE | B15: ENSEIGNEMENT | D15: RESERVE ANFH | E15: DEPLACEMENT | F15: RESERVE ANFH | G15: SALAIRES DE L'AGENT | H15: RESERVE ANFH | I15: TOTAL | J15: RESERVE ANFH
B16: Inscription | C16: Pédagogie
A17: N | G17: =IF($B$9="Choisir dans la liste",0,IF($D$10>0,0,VLOOKUP($B$9,'LISTE DES DIPLOMES EP + DUREE'!$B$3:$L$34,7,FALSE)*$F$9)) -> 0 | I17: =IF($B$9="Choisir dans la liste","",IF(G17=0,0,B17+C17+E17+G17)) -> 
A18: N+1 | G18: =IF($B$9="Choisir dans la liste",0,IF($D$10>0,0,VLOOKUP($B$9,'LISTE DES DIPLOMES EP + DUREE'!$B$3:$L$34,8,FALSE)*$F$9)) -> 0 | I18: =IF($B$9="Choisir dans la liste","",IF(G18=0,0,B18+C18+E18+G18)) -> 
A19: N+2 | G19: =IF($B$9="Choisir dans la liste",0,IF($D$10>0,0,VLOOKUP($B$9,'LISTE DES DIPLOMES EP + DUREE'!$B$3:$L$34,9,FALSE)*$F$9)) -> 0 | I19: =IF($B$9="Choisir dans la liste","",IF(G19=0,0,B19+C19+E19+G19)) -> 
A20: N+3 | G20: =IF($B$9="Choisir dans la liste",0,IF($D$10>0,0,VLOOKUP($B$9,'LISTE DES DIPLOMES EP + DUREE'!$B$3:$L$34,10,FALSE)*$F$9)) -> 0 | I20: =IF($B$9="Choisir dans la liste","",IF(G20=0,0,B20+C20+E20+G20)) -> 
A21: N+4 | G21: =IF($B$9="Choisir dans la liste",0,IF($D$10>0,0,VLOOKUP($B$9,'LISTE DES DIPLOMES EP + DUREE'!$B$3:$L$34,11,FALSE)*$F$9)) -> 0 | I21: =IF($B$9="Choisir dans la liste","",IF(G21=0,0,B21+C21+E21+G21)) -> 
A22: Total | B22: =SUM(B17:B21) -> 0 | C22: =SUM(C17:C21) -> 0 | E22: =SUM(E17:E21) -> 0 | G22: =IF(B9="Choisir dans la liste","",IF(D10>0,"",IF(G17=0,"Coûts ventilés par l'ANFH",G17+G18+G19+G20+G21))) ->  | H22: =IF(G17>0,0,IF(B11="",D10*F9,B11*F9)) ->  | I22: =IF(G17=0,B22+C22+E22+H22,SUM(I17:I21)) -> 
B25: Financement sur vos crédits | E25: =I22-I25 ->  | G25: Financement demandé à l'ANFH

Sheet EP 5
C2: DOSSIER EP | G2: Date limite de dépôt : 17//11/2023
A4: Etablissement demandeur : | C4: Choisir dans la liste
A6: Descriptif de la demande
A7: Priorité du dossier : N° | I7: Précisions Particulières :
A8: NOM- Prénom : | E8: Grade : | F8: Choisir dans la liste | G8: N°INSEE agent : | I8: ASH ayant bénéficié de la formation 70h
A9: Intitulé de la formation / Diplôme visé : | B9: Choisir dans la liste | E9: Forfait de référence : | F9: =IF(F8="Choisir dans la liste","",IF(D10>0,"21,61",VLOOKUP(F8,'LISTE DES GRADES ET CATEGORIES'!A5:B20,2,FALSE))) ->  | I9: Formation complète
A10: Si formation inférieure à 52 jours, préciser nombre d'heures : | I10: Au-delà des 720 jours CFP
A11: Durée scolarité en mois : | B11: =IF(B9="Choisir dans la liste","",IF(D10>0,"",VLOOKUP(B9,diplomes,6,FALSE))) ->  | C11: Durée scolarité en jours : | E11: =IF(B9="Choisir dans la liste","",VLOOKUP(B9,'LISTE DES DIPLOMES EP + DUREE'!B3:F34,5,FALSE)) ->  | G11: Date résultat école : | I11: Module à repasser
A12: Date début : | D12: Date Fin : | G12: Lieu : | I12: Redoublement
A13: Organisme de formation : | I13: Dernier report avant perte bénéfice concours
A14: Coût Réel de la scolarité
A15: ANNEE | B15: ENSEIGNEMENT | D15: RESERVE ANFH | E15: DEPLACEMENT | F15: RESERVE ANFH | G15: SALAIRES DE L'AGENT | H15: RESERVE ANFH | I15: TOTAL | J15: RESERVE ANFH
B16: Inscription | C16: Pédagogie
A17: N | G17: =IF($B$9="Choisir dans la liste",0,IF($D$10>0,0,VLOOKUP($B$9,'LISTE DES DIPLOMES EP + DUREE'!$B$3:$L$34,7,FALSE)*$F$9)) -> 0 | I17: =IF($B$9="Choisir dans la liste","",IF(G17=0,0,B17+C17+E17+G17)) -> 
A18: N+1 | G18: =IF($B$9="Choisir dans la liste",0,IF($D$10>0,0,VLOOKUP($B$9,'LISTE DES DIPLOMES EP + DUREE'!$B$3:$L$34,8,FALSE)*$F$9)) -> 0 | I18: =IF($B$9="Choisir dans la liste","",IF(G18=0,0,B18+C18+E18+G18)) -> 
A19: N+2 | G19: =IF($B$9="Choisir dans la liste",0,IF($D$10>0,0,VLOOKUP($B$9,'LISTE DES DIPLOMES EP + DUREE'!$B$3:$L$34,9,FALSE)*$F$9)) -> 0 | I19: =IF($B$9="Choisir dans la liste","",IF(G19=0,0,B19+C19+E19+G19)) -> 
A20: N+3 | G20: =IF($B$9="Choisir dans la liste",0,IF($D$10>0,0,VLOOKUP($B$9,'LISTE DES DIPLOMES EP + DUREE'!$B$3:$L$34,10,FALSE)*$F$9)) -> 0 | I20: =IF($B$9="Choisir dans la liste","",IF(G20=0,0,B20+C20+E20+G20)) -> 
A21: N+4 | G21: =IF($B$9="Choisir dans la liste",0,IF($D$10>0,0,VLOOKUP($B$9,'LISTE DES DIPLOMES EP + DUREE'!$B$3:$L$34,11,FALSE)*$F$9)) -> 0 | I21: =IF($B$9="Choisir dans la liste","",IF(G21=0,0,B21+C21+E21+G21)) -> 
A22: Total | B22: =SUM(B17:B21) -> 0 | C22: =SUM(C17:C21) -> 0 | E22: =SUM(E17:E21) -> 0 | G22: =IF(B9="Choisir dans la liste","",IF(D10>0,"",IF(G17=0,"Coûts ventilés par l'ANFH",G17+G18+G19+G20+G21))) ->  | H22: =IF(G17>0,0,IF(B11="",D10*F9,B11*F9)) ->  | I22: =IF(G17=0,B22+C22+E22+H22,SUM(I17:I21)) -> 
B25: Financement sur vos crédits | E25: =I22-I25 ->  | G25: Financement demandé à l'ANFH

Sheet EP 6
C2: DOSSIER EP | G2: Date limite de dépôt : 17/11/2023
A4: Etablissement demandeur : | C4: Choisir dans la liste
A6: Descriptif de la demande
A7: Priorité du dossier : N° | I7: Précisions Particulières :
A8: NOM- Prénom : | E8: Grade : | F8: Choisir dans la liste | G8: N°INSEE agent : | I8: ASH ayant bénéficié de la formation 70h
A9: Intitulé de la formation / Diplôme visé : | B9: Choisir dans la liste | E9: Forfait de référence : | F9: =IF(F8="Choisir dans la liste","",IF(D10>0,"21,61",VLOOKUP(F8,'LISTE DES GRADES ET CATEGORIES'!A5:B20,2,FALSE))) ->  | I9: Formation complète
A10: Si formation inférieure à 52 jours, préciser nombre d'heures : | I10: Au-delà des 720 jours CFP
A11: Durée scolarité en mois : | B11: =IF(B9="Choisir dans la liste","",IF(D10>0,"",VLOOKUP(B9,diplomes,6,FALSE))) ->  | C11: Durée scolarité en jours : | E11: =IF(B9="Choisir dans la liste","",VLOOKUP(B9,'LISTE DES DIPLOMES EP + DUREE'!B3:F34,5,FALSE)) ->  | G11: Date résultat école : | I11: Module à repasser
A12: Date début : | D12: Date Fin : | G12: Lieu : | I12: Redoublement
A13: Organisme de formation : | I13: Dernier report avant perte bénéfice concours
A14: Coût Réel de la scolarité
A15: ANNEE | B15: ENSEIGNEMENT | D15: RESERVE ANFH | E15: DEPLACEMENT | F15: RESERVE ANFH | G15: SALAIRES DE L'AGENT | H15: RESERVE ANFH | I15: TOTAL | J15: RESERVE ANFH
B16: Inscription | C16: Pédagogie
A17: N | G17: =IF($B$9="Choisir dans la liste",0,IF($D$10>0,0,VLOOKUP($B$9,'LISTE DES DIPLOMES EP + DUREE'!$B$3:$L$34,7,FALSE)*$F$9)) -> 0 | I17: =IF($B$9="Choisir dans la liste","",IF(G17=0,0,B17+C17+E17+G17)) -> 
A18: N+1 | G18: =IF($B$9="Choisir dans la liste",0,IF($D$10>0,0,VLOOKUP($B$9,'LISTE DES DIPLOMES EP + DUREE'!$B$3:$L$34,8,FALSE)*$F$9)) -> 0 | I18: =IF($B$9="Choisir dans la liste","",IF(G18=0,0,B18+C18+E18+G18)) -> 
A19: N+2 | G19: =IF($B$9="Choisir dans la liste",0,IF($D$10>0,0,VLOOKUP($B$9,'LISTE DES DIPLOMES EP + DUREE'!$B$3:$L$34,9,FALSE)*$F$9)) -> 0 | I19: =IF($B$9="Choisir dans la liste","",IF(G19=0,0,B19+C19+E19+G19)) -> 
A20: N+3 | G20: =IF($B$9="Choisir dans la liste",0,IF($D$10>0,0,VLOOKUP($B$9,'LISTE DES DIPLOMES EP + DUREE'!$B$3:$L$34,10,FALSE)*$F$9)) -> 0 | I20: =IF($B$9="Choisir dans la liste","",IF(G20=0,0,B20+C20+E20+G20)) -> 
A21: N+4 | G21: =IF($B$9="Choisir dans la liste",0,IF($D$10>0,0,VLOOKUP($B$9,'LISTE DES DIPLOMES EP + DUREE'!$B$3:$L$34,11,FALSE)*$F$9)) -> 0 | I21: =IF($B$9="Choisir dans la liste","",IF(G21=0,0,B21+C21+E21+G21)) -> 
A22: Total | B22: =SUM(B17:B21) -> 0 | C22: =SUM(C17:C21) -> 0 | E22: =SUM(E17:E21) -> 0 | G22: =IF(B9="Choisir dans la liste","",IF(D10>0,"",IF(G17=0,"Coûts ventilés par l'ANFH",G17+G18+G19+G20+G21))) ->  | H22: =IF(G17>0,0,IF(B11="",D10*F9,B11*F9)) ->  | I22: =IF(G17=0,B22+C22+E22+H22,SUM(I17:I21)) -> 
B25: Financement sur vos crédits | E25: =I22-I25 ->  | G25: Financement demandé à l'ANFH

Sheet EP 7
C2: DOSSIER EP | G2: Date limite de dépôt : 17/11/2023
A4: Etablissement demandeur : | C4: Choisir dans la liste
A6: Descriptif de la demande
A7: Priorité du dossier : N° | I7: Précisions Particulières :
A8: NOM- Prénom : | E8: Grade : | F8: Choisir dans la liste | G8: N°INSEE agent : | I8: ASH ayant bénéficié de la formation 70h
A9: Intitulé de la formation / Diplôme visé : | B9: Choisir dans la liste | E9: Forfait de référence : | F9: =IF(F8="Choisir dans la liste","",IF(D10>0,"21,61",VLOOKUP(F8,'LISTE DES GRADES ET CATEGORIES'!A5:B20,2,FALSE))) ->  | I9: Formation complète
A10: Si formation inférieure à 52 jours, préciser nombre d'heures : | I10: Au-delà des 720 jours CFP
A11: Durée scolarité en mois : | B11: =IF(B9="Choisir dans la liste","",IF(D10>0,"",VLOOKUP(B9,diplomes,6,FALSE))) ->  | C11: Durée scolarité en jours : | E11: =IF(B9="Choisir dans la liste","",VLOOKUP(B9,'LISTE DES DIPLOMES EP + DUREE'!B3:F34,5,FALSE)) ->  | G11: Date résultat école : | I11: Module à repasser
A12: Date début : | D12: Date Fin : | G12: Lieu : | I12: Redoublement
A13: Organisme de formation : | I13: Dernier report avant perte bénéfice concours
A14: Coût Réel de la scolarité
A15: ANNEE | B15: ENSEIGNEMENT | D15: RESERVE ANFH | E15: DEPLACEMENT | F15: RESERVE ANFH | G15: SALAIRES DE L'AGENT | H15: RESERVE ANFH | I15: TOTAL | J15: RESERVE ANFH
B16: Inscription | C16: Pédagogie
A17: N | G17: =IF($B$9="Choisir dans la liste",0,IF($D$10>0,0,VLOOKUP($B$9,'LISTE DES DIPLOMES EP + DUREE'!$B$3:$L$34,7,FALSE)*$F$9)) -> 0 | I17: =IF($B$9="Choisir dans la liste","",IF(G17=0,0,B17+C17+E17+G17)) -> 
A18: N+1 | G18: =IF($B$9="Choisir dans la liste",0,IF($D$10>0,0,VLOOKUP($B$9,'LISTE DES DIPLOMES EP + DUREE'!$B$3:$L$34,8,FALSE)*$F$9)) -> 0 | I18: =IF($B$9="Choisir dans la liste","",IF(G18=0,0,B18+C18+E18+G18)) -> 
A19: N+2 | G19: =IF($B$9="Choisir dans la liste",0,IF($D$10>0,0,VLOOKUP($B$9,'LISTE DES DIPLOMES EP + DUREE'!$B$3:$L$34,9,FALSE)*$F$9)) -> 0 | I19: =IF($B$9="Choisir dans la liste","",IF(G19=0,0,B19+C19+E19+G19)) -> 
A20: N+3 | G20: =IF($B$9="Choisir dans la liste",0,IF($D$10>0,0,VLOOKUP($B$9,'LISTE DES DIPLOMES EP + DUREE'!$B$3:$L$34,10,FALSE)*$F$9)) -> 0 | I20: =IF($B$9="Choisir dans la liste","",IF(G20=0,0,B20+C20+E20+G20)) -> 
A21: N+4 | G21: =IF($B$9="Choisir dans la liste",0,IF($D$10>0,0,VLOOKUP($B$9,'LISTE DES DIPLOMES EP + DUREE'!$B$3:$L$34,11,FALSE)*$F$9)) -> 0 | I21: =IF($B$9="Choisir dans la liste","",IF(G21=0,0,B21+C21+E21+G21)) -> 
A22: Total | B22: =SUM(B17:B21) -> 0 | C22: =SUM(C17:C21) -> 0 | E22: =SUM(E17:E21) -> 0 | G22: =IF(B9="Choisir dans la liste","",IF(D10>0,"",IF(G17=0,"Coûts ventilés par l'ANFH",G17+G18+G19+G20+G21))) ->  | H22: =IF(G17>0,0,IF(B11="",D10*F9,B11*F9)) ->  | I22: =IF(G17=0,B22+C22+E22+H22,SUM(I17:I21)) -> 
B25: Financement sur vos crédits | E25: =I22-I25 ->  | G25: Financement demandé à l'ANFH

Sheet EP 8
C2: DOSSIER EP | G2: Date limite de dépôt : 17/11/2023
A4: Etablissement demandeur : | C4: Choisir dans la liste
A6: Descriptif de la demande
A7: Priorité du dossier : N° | I7: Précisions Particulières :
A8: NOM- Prénom : | E8: Grade : | F8: Choisir dans la liste | G8: N°INSEE agent : | I8: ASH ayant bénéficié de la formation 70h
A9: Intitulé de la formation / Diplôme visé : | B9: Choisir dans la liste | E9: Forfait de référence : | F9: =IF(F8="Choisir dans la liste","",IF(D10>0,"21,61",VLOOKUP(F8,'LISTE DES GRADES ET CATEGORIES'!A5:B20,2,FALSE))) ->  | I9: Formation complète
A10: Si formation inférieure à 52 jours, préciser nombre d'heures : | I10: Au-delà des 720 jours CFP
A11: Durée scolarité en mois : | B11: =IF(B9="Choisir dans la liste","",IF(D10>0,"",VLOOKUP(B9,diplomes,6,FALSE))) ->  | C11: Durée scolarité en jours : | E11: =IF(B9="Choisir dans la liste","",VLOOKUP(B9,'LISTE DES DIPLOMES EP + DUREE'!B3:F34,5,FALSE)) ->  | G11: Date résultat école : | I11: Module à repasser
A12: Date début : | D12: Date Fin : | G12: Lieu : | I12: Redoublement
A13: Organisme de formation : | I13: Dernier report avant perte bénéfice concours
A14: Coût Réel de la scolarité
A15: ANNEE | B15: ENSEIGNEMENT | D15: RESERVE ANFH | E15: DEPLACEMENT | F15: RESERVE ANFH | G15: SALAIRES DE L'AGENT | H15: RESERVE ANFH | I15: TOTAL | J15: RESERVE ANFH
B16: Inscription | C16: Pédagogie
A17: N | G17: =IF($B$9="Choisir dans la liste",0,IF($D$10>0,0,VLOOKUP($B$9,'LISTE DES DIPLOMES EP + DUREE'!$B$3:$L$34,7,FALSE)*$F$9)) -> 0 | I17: =IF($B$9="Choisir dans la liste","",IF(G17=0,0,B17+C17+E17+G17)) -> 
A18: N+1 | G18: =IF($B$9="Choisir dans la liste",0,IF($D$10>0,0,VLOOKUP($B$9,'LISTE DES DIPLOMES EP + DUREE'!$B$3:$L$34,8,FALSE)*$F$9)) -> 0 | I18: =IF($B$9="Choisir dans la liste","",IF(G18=0,0,B18+C18+E18+G18)) -> 
A19: N+2 | G19: =IF($B$9="Choisir dans la liste",0,IF($D$10>0,0,VLOOKUP($B$9,'LISTE DES DIPLOMES EP + DUREE'!$B$3:$L$34,9,FALSE)*$F$9)) -> 0 | I19: =IF($B$9="Choisir dans la liste","",IF(G19=0,0,B19+C19+E19+G19)) -> 
A20: N+3 | G20: =IF($B$9="Choisir dans la liste",0,IF($D$10>0,0,VLOOKUP($B$9,'LISTE DES DIPLOMES EP + DUREE'!$B$3:$L$34,10,FALSE)*$F$9)) -> 0 | I20: =IF($B$9="Choisir dans la liste","",IF(G20=0,0,B20+C20+E20+G20)) -> 
A21: N+4 | G21: =IF($B$9="Choisir dans la liste",0,IF($D$10>0,0,VLOOKUP($B$9,'LISTE DES DIPLOMES EP + DUREE'!$B$3:$L$34,11,FALSE)*$F$9)) -> 0 | I21: =IF($B$9="Choisir dans la liste","",IF(G21=0,0,B21+C21+E21+G21)) -> 
A22: Total | B22: =SUM(B17:B21) -> 0 | C22: =SUM(C17:C21) -> 0 | E22: =SUM(E17:E21) -> 0 | G22: =IF(B9="Choisir dans la liste","",IF(D10>0,"",IF(G17=0,"Coûts ventilés par l'ANFH",G17+G18+G19+G20+G21))) ->  | H22: =IF(G17>0,0,IF(B11="",D10*F9,B11*F9)) ->  | I22: =IF(G17=0,B22+C22+E22+H22,SUM(I17:I21)) -> 
B25: Financement sur vos crédits | E25: =I22-I25 ->  | G25: Financement demandé à l'ANFH

Sheet EP 9
C2: DOSSIER EP | G2: Date limite de dépôt : 17/11/2023
A4: Etablissement demandeur : | C4: Choisir dans la liste
A6: Descriptif de la demande
A7: Priorité du dossier : N° | I7: Précisions Particulières :
A8: NOM- Prénom : | E8: Grade : | F8: Choisir dans la liste | G8: N°INSEE agent : | I8: ASH ayant bénéficié de la formation 70h
A9: Intitulé de la formation / Diplôme visé : | B9: Choisir dans la liste | E9: Forfait de référence : | F9: =IF(F8="Choisir dans la liste","",IF(D10>0,"21,61",VLOOKUP(F8,'LISTE DES GRADES ET CATEGORIES'!A5:B20,2,FALSE))) ->  | I9: Formation complète
A10: Si formation inférieure à 52 jours, préciser nombre d'heures : | I10: Au-delà des 720 jours CFP
A11: Durée scolarité en mois : | B11: =IF(B9="Choisir dans la liste","",IF(D10>0,"",VLOOKUP(B9,diplomes,6,FALSE))) ->  | C11: Durée scolarité en jours : | E11: =IF(B9="Choisir dans la liste","",VLOOKUP(B9,'LISTE DES DIPLOMES EP + DUREE'!B3:F34,5,FALSE)) ->  | G11: Date résultat école : | I11: Module à repasser
A12: Date début : | D12: Date Fin : | G12: Lieu : | I12: Redoublement
A13: Organisme de formation : | I13: Dernier report avant perte bénéfice concours
A14: Coût Réel de la scolarité
A15: ANNEE | B15: ENSEIGNEMENT | D15: RESERVE ANFH | E15: DEPLACEMENT | F15: RESERVE ANFH | G15: SALAIRES DE L'AGENT | H15: RESERVE ANFH | I15: TOTAL | J15: RESERVE ANFH
B16: Inscription | C16: Pédagogie
A17: N | G17: =IF($B$9="Choisir dans la liste",0,IF($D$10>0,0,VLOOKUP($B$9,'LISTE DES DIPLOMES EP + DUREE'!$B$3:$L$34,7,FALSE)*$F$9)) -> 0 | I17: =IF($B$9="Choisir dans la liste","",IF(G17=0,0,B17+C17+E17+G17)) -> 
A18: N+1 | G18: =IF($B$9="Choisir dans la liste",0,IF($D$10>0,0,VLOOKUP($B$9,'LISTE DES DIPLOMES EP + DUREE'!$B$3:$L$34,8,FALSE)*$F$9)) -> 0 | I18: =IF($B$9="Choisir dans la liste","",IF(G18=0,0,B18+C18+E18+G18)) -> 
A19: N+2 | G19: =IF($B$9="Choisir dans la liste",0,IF($D$10>0,0,VLOOKUP($B$9,'LISTE DES DIPLOMES EP + DUREE'!$B$3:$L$34,9,FALSE)*$F$9)) -> 0 | I19: =IF($B$9="Choisir dans la liste","",IF(G19=0,0,B19+C19+E19+G19)) -> 
A20: N+3 | G20: =IF($B$9="Choisir dans la liste",0,IF($D$10>0,0,VLOOKUP($B$9,'LISTE DES DIPLOMES EP + DUREE'!$B$3:$L$34,10,FALSE)*$F$9)) -> 0 | I20: =IF($B$9="Choisir dans la liste","",IF(G20=0,0,B20+C20+E20+G20)) -> 
A21: N+4 | G21: =IF($B$9="Choisir dans la liste",0,IF($D$10>0,0,VLOOKUP($B$9,'LISTE DES DIPLOMES EP + DUREE'!$B$3:$L$34,11,FALSE)*$F$9)) -> 0 | I21: =IF($B$9="Choisir dans la liste","",IF(G21=0,0,B21+C21+E21+G21)) -> 
A22: Total | B22: =SUM(B17:B21) -> 0 | C22: =SUM(C17:C21) -> 0 | E22: =SUM(E17:E21) -> 0 | G22: =IF(B9="Choisir dans la liste","",IF(D10>0,"",IF(G17=0,"Coûts ventilés par l'ANFH",G17+G18+G19+G20+G21))) ->  | H22: =IF(G17>0,0,IF(B11="",D10*F9,B11*F9)) ->  | I22: =IF(G17=0,B22+C22+E22+H22,SUM(I17:I21)) -> 
B25: Financement sur vos crédits | E25: =I22-I25 ->  | G25: Financement demandé à l'ANFH

Sheet EP 10
C2: DOSSIER EP | G2: Date limite de dépôt : 17/11/2023
A4: Etablissement demandeur : | C4: Choisir dans la liste
A6: Descriptif de la demande
A7: Priorité du dossier : N° | I7: Précisions Particulières :
A8: NOM- Prénom : | E8: Grade : | F8: Choisir dans la liste | G8: N°INSEE agent : | I8: ASH ayant bénéficié de la formation 70h
A9: Intitulé de la formation / Diplôme visé : | B9: Choisir dans la liste | E9: Forfait de référence : | F9: =IF(F8="Choisir dans la liste","",IF(D10>0,"21,61",VLOOKUP(F8,'LISTE DES GRADES ET CATEGORIES'!A5:B20,2,FALSE))) ->  | I9: Formation complète
A10: Si formation inférieure à 52 jours, préciser nombre d'heures : | I10: Au-delà des 720 jours CFP
A11: Durée scolarité en mois : | B11: =IF(B9="Choisir dans la liste","",IF(D10>0,"",VLOOKUP(B9,diplomes,6,FALSE))) ->  | C11: Durée scolarité en jours : | E11: =IF(B9="Choisir dans la liste","",VLOOKUP(B9,'LISTE DES DIPLOMES EP + DUREE'!B3:F34,5,FALSE)) ->  | G11: Date résultat école : | I11: Module à repasser
A12: Date début : | D12: Date Fin : | G12: Lieu : | I12: Redoublement
A13: Organisme de formation : | I13: Dernier report avant perte bénéfice concours
A14: Coût Réel de la scolarité
A15: ANNEE | B15: ENSEIGNEMENT | D15: RESERVE ANFH | E15: DEPLACEMENT | F15: RESERVE ANFH | G15: SALAIRES DE L'AGENT | H15: RESERVE ANFH | I15: TOTAL | J15: RESERVE ANFH
B16: Inscription | C16: Pédagogie
A17: N | G17: =IF($B$9="Choisir dans la liste",0,IF($D$10>0,0,VLOOKUP($B$9,'LISTE DES DIPLOMES EP + DUREE'!$B$3:$L$34,7,FALSE)*$F$9)) -> 0 | I17: =IF($B$9="Choisir dans la liste","",IF(G17=0,0,B17+C17+E17+G17)) -> 
A18: N+1 | G18: =IF($B$9="Choisir dans la liste",0,IF($D$10>0,0,VLOOKUP($B$9,'LISTE DES DIPLOMES EP + DUREE'!$B$3:$L$34,8,FALSE)*$F$9)) -> 0 | I18: =IF($B$9="Choisir dans la liste","",IF(G18=0,0,B18+C18+E18+G18)) -> 
A19: N+2 | G19: =IF($B$9="Choisir dans la liste",0,IF($D$10>0,0,VLOOKUP($B$9,'LISTE DES DIPLOMES EP + DUREE'!$B$3:$L$34,9,FALSE)*$F$9)) -> 0 | I19: =IF($B$9="Choisir dans la liste","",IF(G19=0,0,B19+C19+E19+G19)) -> 
A20: N+3 | G20: =IF($B$9="Choisir dans la liste",0,IF($D$10>0,0,VLOOKUP($B$9,'LISTE DES DIPLOMES EP + DUREE'!$B$3:$L$34,10,FALSE)*$F$9)) -> 0 | I20: =IF($B$9="Choisir dans la liste","",IF(G20=0,0,B20+C20+E20+G20)) -> 
A21: N+4 | G21: =IF($B$9="Choisir dans la liste",0,IF($D$10>0,0,VLOOKUP($B$9,'LISTE DES DIPLOMES EP + DUREE'!$B$3:$L$34,11,FALSE)*$F$9)) -> 0 | I21: =IF($B$9="Choisir dans la liste","",IF(G21=0,0,B21+C21+E21+G21)) -> 
A22: Total | B22: =SUM(B17:B21) -> 0 | C22: =SUM(C17:C21) -> 0 | E22: =SUM(E17:E21) -> 0 | G22: =IF(B9="Choisir dans la liste","",IF(D10>0,"",IF(G17=0,"Coûts ventilés par l'ANFH",G17+G18+G19+G20+G21))) ->  | H22: =IF(G17>0,0,IF(B11="",D10*F9,B11*F9)) ->  | I22: =IF(G17=0,B22+C22+E22+H22,SUM(I17:I21)) -> 
B25: Financement sur vos crédits | E25: =I22-I25 ->  | G25: Financement demandé à l'ANFH

Sheet EP AGENT SANS POSTE 1
C2: EP AGENT SANS POSTE A L'ISSUE DE LEUR CURSUS | G2: Date limite de dépôt : 17/11/2023
A4: Etablissement demandeur : | C4: Choisir dans la liste
A6: Descriptif de la demande
A7: Priorité du dossier : N° | I7: Précisions Particulières :
A8: NOM- Prénom : | E8: Grade : | F8: Choisir dans la liste | G8: N°INSEE agent : | I8: ASH ayant bénéficié de la formation 70h
A9: Intitulé de la formation / Diplôme visé : | B9: Choisir dans la liste | E9: Forfait de référence : | F9: =IF(F8="Choisir dans la liste","",IF(D10>0,"21,61",VLOOKUP(F8,'LISTE DES GRADES ET CATEGORIES'!A5:B20,2,FALSE))) ->  | I9: Formation complète
A10: Si formation inférieure à 52 jours, préciser nombre d'heures : | I10: Module à repasser / Redoublement
A11: Durée scolarité en mois : | B11: =IF(B9="Choisir dans la liste","",IF(D10>0,"",VLOOKUP(B9,diplomes,6,FALSE))) ->  | C11: Durée scolarité en mois : | E11: =IF(B9="Choisir dans la liste","",VLOOKUP(B9,'LISTE DES DIPLOMES EP + DUREE'!B3:F34,5,FALSE)) ->  | G11: Date résultat école : | I11: Au-delà des 720 jours CFP
A12: Date début : | D12: Date Fin : | G12: Lieu : | I12: Dernier report avant perte bénéfice concours
A13: Organisme de formation :
A14: Coût réel de la scolarité
A15: ANNEE | B15: ENSEIGNEMENT | D15: RESERVE ANFH | E15: DEPLACEMENT | F15: RESERVE ANFH | G15: SALAIRES DE L'AGENT | H15: RESERVE ANFH | I15: TOTAL | J15: RESERVE ANFH
B16: Inscription | C16: Pédagogie
A17: N | G17: =IF($B$9="Choisir dans la liste",0,IF($D$10>0,0,VLOOKUP($B$9,'LISTE DES DIPLOMES EP + DUREE'!$B$3:$L$34,7,FALSE)*$F$9)) -> 0 | I17: =IF($B$9="Choisir dans la liste","",IF(G17=0,0,B17+C17+E17+G17)) -> 
A18: N+1 | G18: =IF($B$9="Choisir dans la liste",0,IF($D$10>0,0,VLOOKUP($B$9,'LISTE DES DIPLOMES EP + DUREE'!$B$3:$L$34,8,FALSE)*$F$9)) -> 0 | I18: =IF($B$9="Choisir dans la liste","",IF(G18=0,0,B18+C18+E18+G18)) -> 
A19: N+2 | G19: =IF($B$9="Choisir dans la liste",0,IF($D$10>0,0,VLOOKUP($B$9,'LISTE DES DIPLOMES EP + DUREE'!$B$3:$L$34,9,FALSE)*$F$9)) -> 0 | I19: =IF($B$9="Choisir dans la liste","",IF(G19=0,0,B19+C19+E19+G19)) -> 
A20: N+3 | G20: =IF($B$9="Choisir dans la liste",0,IF($D$10>0,0,VLOOKUP($B$9,'LISTE DES DIPLOMES EP + DUREE'!$B$3:$L$34,10,FALSE)*$F$9)) -> 0 | I20: =IF($B$9="Choisir dans la liste","",IF(G20=0,0,B20+C20+E20+G20)) -> 
A21: N+4 | G21: =IF($B$9="Choisir dans la liste",0,IF($D$10>0,0,VLOOKUP($B$9,'LISTE DES DIPLOMES EP + DUREE'!$B$3:$L$34,11,FALSE)*$F$9)) -> 0 | I21: =IF($B$9="Choisir dans la liste","",IF(G21=0,0,B21+C21+E21+G21)) -> 
A22: Total | B22: =SUM(B17:B21) -> 0 | C22: =SUM(C17:C21) -> 0 | E22: =SUM(E17:E21) -> 0 | G22: =IF(B9="Choisir dans la liste","",IF(D10>0,"",IF(G17=0,"Coûts ventilés par l'ANFH",G17+G18+G19+G20+G21))) ->  | H22: =IF(G17>0,0,IF(B11="",D10*F9,B11*F9)) ->  | I22: =IF(G17=0,B22+C22+E22+H22,SUM(I17:I21)) -> 
G25: Financement demandé à l'ANFH | I25: =I22 -> 

Sheet EP AGENT SANS POSTE 2
C2: EP AGENT SANS POSTE A L'ISSUE DE LEUR CURSUS | G2: Date limite de dépôt : 17/11/2023
A4: Etablissement demandeur : | C4: Choisir dans la liste
A6: Descriptif de la demande
A7: Priorité du dossier : N° | I7: Précisions Particulières :
A8: NOM- Prénom : | E8: Grade : | F8: Choisir dans la liste | G8: N°INSEE agent : | I8: ASH ayant bénéficié de la formation 70h
A9: Intitulé de la formation / Diplôme visé : | B9: Choisir dans la liste | E9: Forfait de référence : | F9: =IF(F8="Choisir dans la liste","",IF(D10>0,"21,61",VLOOKUP(F8,'LISTE DES GRADES ET CATEGORIES'!A5:B20,2,FALSE))) ->  | I9: Formation complète
A10: Si formation inférieure à 52 jours, préciser nombre d'heures : | I10: Module à repasser / Redoublement
A11: Durée scolarité en mois : | B11: =IF(B9="Choisir dans la liste","",IF(D10>0,"",VLOOKUP(B9,diplomes,6,FALSE))) ->  | C11: Durée scolarité en mois : | E11: =IF(B9="Choisir dans la liste","",VLOOKUP(B9,'LISTE DES DIPLOMES EP + DUREE'!B3:F34,5,FALSE)) ->  | G11: Date résultat école : | I11: Au-delà des 720 jours CFP
A12: Date début : | D12: Date Fin : | G12: Lieu : | I12: Dernier report avant perte bénéfice concours
A13: Organisme de formation :
A14: Coût réel de la scolarité
A15: ANNEE | B15: ENSEIGNEMENT | D15: RESERVE ANFH | E15: DEPLACEMENT | F15: RESERVE ANFH | G15: SALAIRES DE L'AGENT | H15: RESERVE ANFH | I15: TOTAL | J15: RESERVE ANFH
B16: Inscription | C16: Pédagogie
A17: N | G17: =IF($B$9="Choisir dans la liste",0,IF($D$10>0,0,VLOOKUP($B$9,'LISTE DES DIPLOMES EP + DUREE'!$B$3:$L$34,7,FALSE)*$F$9)) -> 0 | I17: =IF($B$9="Choisir dans la liste","",IF(G17=0,0,B17+C17+E17+G17)) -> 
A18: N+1 | G18: =IF($B$9="Choisir dans la liste",0,IF($D$10>0,0,VLOOKUP($B$9,'LISTE DES DIPLOMES EP + DUREE'!$B$3:$L$34,8,FALSE)*$F$9)) -> 0 | I18: =IF($B$9="Choisir dans la liste","",IF(G18=0,0,B18+C18+E18+G18)) -> 
A19: N+2 | G19: =IF($B$9="Choisir dans la liste",0,IF($D$10>0,0,VLOOKUP($B$9,'LISTE DES DIPLOMES EP + DUREE'!$B$3:$L$34,9,FALSE)*$F$9)) -> 0 | I19: =IF($B$9="Choisir dans la liste","",IF(G19=0,0,B19+C19+E19+G19)) -> 
A20: N+3 | G20: =IF($B$9="Choisir dans la liste",0,IF($D$10>0,0,VLOOKUP($B$9,'LISTE DES DIPLOMES EP + DUREE'!$B$3:$L$34,10,FALSE)*$F$9)) -> 0 | I20: =IF($B$9="Choisir dans la liste","",IF(G20=0,0,B20+C20+E20+G20)) -> 
A21: N+4 | G21: =IF($B$9="Choisir dans la liste",0,IF($D$10>0,0,VLOOKUP($B$9,'LISTE DES DIPLOMES EP + DUREE'!$B$3:$L$34,11,FALSE)*$F$9)) -> 0 | I21: =IF($B$9="Choisir dans la liste","",IF(G21=0,0,B21+C21+E21+G21)) -> 
A22: Total | B22: =SUM(B17:B21) -> 0 | C22: =SUM(C17:C21) -> 0 | E22: =SUM(E17:E21) -> 0 | G22: =IF(B9="Choisir dans la liste","",IF(D10>0,"",IF(G17=0,"Coûts ventilés par l'ANFH",G17+G18+G19+G20+G21))) ->  | H22: =IF(G17>0,0,IF(B11="",D10*F9,B11*F9)) ->  | I22: =IF(G17=0,B22+C22+E22+H22,SUM(I17:I21)) -> 
G25: Financement demandé à l'ANFH | I25: =I22 -> 

Sheet EP AGENT SANS POSTE 3
C2: EP AGENT SANS POSTE A L'ISSUE DE LEUR CURSUS | G2: Date limite de dépôt : 17/11/2023
A4: Etablissement demandeur : | C4: Choisir dans la liste
A6: Descriptif de la demande
A7: Priorité du dossier : N° | I7: Précisions Particulières :
A8: NOM- Prénom : | E8: Grade : | F8: Choisir dans la liste | G8: N°INSEE agent : | I8: ASH ayant bénéficié de la formation 70h
A9: Intitulé de la formation / Diplôme visé : | B9: Choisir dans la liste | E9: Forfait de référence : | F9: =IF(F8="Choisir dans la liste","",IF(D10>0,"21,61",VLOOKUP(F8,'LISTE DES GRADES ET CATEGORIES'!A5:B20,2,FALSE))) ->  | I9: Formation complète
A10: Si formation inférieure à 52 jours, préciser nombre d'heures : | I10: Module à repasser / Redoublement
A11: Durée scolarité en mois : | B11: =IF(B9="Choisir dans la liste","",IF(D10>0,"",VLOOKUP(B9,diplomes,6,FALSE))) ->  | C11: Durée scolarité en mois : | E11: =IF(B9="Choisir dans la liste","",VLOOKUP(B9,'LISTE DES DIPLOMES EP + DUREE'!B3:F34,5,FALSE)) ->  | G11: Date résultat école : | I11: Au-delà des 720 jours CFP
A12: Date début : | D12: Date Fin : | G12: Lieu : | I12: Dernier report avant perte bénéfice concours
A13: Organisme de formation :
A14: Coût réel de la scolarité
A15: ANNEE | B15: ENSEIGNEMENT | D15: RESERVE ANFH | E15: DEPLACEMENT | F15: RESERVE ANFH | G15: SALAIRES DE L'AGENT | H15: RESERVE ANFH | I15: TOTAL | J15: RESERVE ANFH
B16: Inscription | C16: Pédagogie
A17: N | G17: =IF($B$9="Choisir dans la liste",0,IF($D$10>0,0,VLOOKUP($B$9,'LISTE DES DIPLOMES EP + DUREE'!$B$3:$L$34,7,FALSE)*$F$9)) -> 0 | I17: =IF($B$9="Choisir dans la liste","",IF(G17=0,0,B17+C17+E17+G17)) -> 
A18: N+1 | G18: =IF($B$9="Choisir dans la liste",0,IF($D$10>0,0,VLOOKUP($B$9,'LISTE DES DIPLOMES EP + DUREE'!$B$3:$L$34,8,FALSE)*$F$9)) -> 0 | I18: =IF($B$9="Choisir dans la liste","",IF(G18=0,0,B18+C18+E18+G18)) -> 
A19: N+2 | G19: =IF($B$9="Choisir dans la liste",0,IF($D$10>0,0,VLOOKUP($B$9,'LISTE DES DIPLOMES EP + DUREE'!$B$3:$L$34,9,FALSE)*$F$9)) -> 0 | I19: =IF($B$9="Choisir dans la liste","",IF(G19=0,0,B19+C19+E19+G19)) -> 
A20: N+3 | G20: =IF($B$9="Choisir dans la liste",0,IF($D$10>0,0,VLOOKUP($B$9,'LISTE DES DIPLOMES EP + DUREE'!$B$3:$L$34,10,FALSE)*$F$9)) -> 0 | I20: =IF($B$9="Choisir dans la liste","",IF(G20=0,0,B20+C20+E20+G20)) -> 
A21: N+4 | G21: =IF($B$9="Choisir dans la liste",0,IF($D$10>0,0,VLOOKUP($B$9,'LISTE DES DIPLOMES EP + DUREE'!$B$3:$L$34,11,FALSE)*$F$9)) -> 0 | I21: =IF($B$9="Choisir dans la liste","",IF(G21=0,0,B21+C21+E21+G21)) -> 
A22: Total | B22: =SUM(B17:B21) -> 0 | C22: =SUM(C17:C21) -> 0 | E22: =SUM(E17:E21) -> 0 | G22: =IF(B9="Choisir dans la liste","",IF(D10>0,"",IF(G17=0,"Coûts ventilés par l'ANFH",G17+G18+G19+G20+G21))) ->  | H22: =IF(G17>0,0,IF(B11="",D10*F9,B11*F9)) ->  | I22: =IF(G17=0,B22+C22+E22+H22,SUM(I17:I21)) -> 
G25: Financement demandé à l'ANFH | I25: =I22 -> 

Sheet AIDE CALCUL DEPLACEMENT
A1: Fiche d'aide au calcul des déplacements (Transport/hébergement/repas)
A3: Nom-Prénom-Grade
F4: Date début | H4: Date Fin | I4: Nbre jours en formation
A5: Intitulé de la formation : | B5: Choisir dans la liste | I5: =IF(B5="Choisir dans la liste","",VLOOKUP(B5,'LISTE DES DIPLOMES EP + DUREE'!B3:F34,5,FALSE)) -> 
A7: Détail frais de transport
A8: Utilisation véhicule | N8: Récapitulatif cumul km parcourus
A9: Catégorie (puissance fiscale) | B9: Jusqu'à 2 000 Km | C9: Nbre de km | D9: Montant | E9: de 2 001 Km à 10 000 Km | F9: Nbre de Km | G9: Montant | H9: Au - delà de 10 000 Km | I9: Nbre de Km | J9: Montant | K9: TOTAL | N9: Mois | O9: km | P9: cumul
A10: 5 CV et moins | B10: 0.32 | D10: =B10*C10 -> 0 | E10: 0.4 | G10: =E10*F10 -> 0 | H10: 0.23 | J10: =H10*I10 -> 0 | K10: =D10+G10+J10 -> 0 | N10: Janvier | P10: =O10 -> 0
A11: 6 et 7 CV | B11: 0.41 | D11: =B11*C11 -> 0 | E11: 0.51 | G11: =E11*F11 -> 0 | H11: 0.3 | J11: =H11*I11 -> 0 | K11: =D11+G11+J11 -> 0 | N11: Février | P11: =P10+O11 -> 0
A12: 8 CV et plus | B12: 0.45 | D12: =B12*C12 -> 0 | E12: 0.55 | G12: =E12*F12 -> 0 | H12: 0.32 | J12: =H12*I12 -> 0 | K12: =D12+G12+J12 -> 0 | N12: Mars | P12: =P11+O12 -> 0
I13: Total transport | K13: =SUM(K10:K12) -> 0 | N13: Avril | P13: =P12+O13 -> 0
N14: Mai | P14: =P13+O14 -> 0
A15: Frais transports annexes | E15: Prix unitaire | F15: Nbre | G15: Total | N15: Juin | P15: =P14+O15 -> 0
B16: Autoroute | G16: =E16*F16 -> 0 | N16: Juillet | P16: 0
B17: Parking | G17: =E17*F17 -> 0 | N17: Août | P17: 0
B18: Métro, bus | G18: =E18*F18 -> 0 | N18: Septembre | P18: 0
B19: SNCF 2ème classe ALLER/RETOUR | G19: =E19*F19 -> 0 | N19: Octobre | P19: 0
N20: Novembre | P20: 0
N21: Décembre | P21: 0
O22: Total | P22: =P21 -> 0
I24: Total déplacement | L24: =K13+G16+G17+K21+G18+G19 -> 0
A27: Détail frais de découchers
N28: Récapitulatif nombre nuitées par agent
A29: LOYER | B29: Nbre de mois | C29: Coût loyer | D29: Total | N29: Mois | O29: Nbre nuits | P29: cumul
D30: =B30*C30 -> 0 | N30: Janvier | P30: =O30 -> 0
N31: Février | P31: =P30+O31 -> 0
N32: Mars | P32: 0
A33: HOTEL | N33: Avril | P33: 0
B34: Ville + 200 000 hbt | C34: Nbre | D34: Montant | E34: Autres villes | F34: Nbre | G34: Montant | H34: Frais réels | I34: Nbre | J34: Montant | K34: Total Hôtel | N34: Mai | P34: 0
A35: du 1er au 10ème jour | B35: 120 | D35: =B35*C35 -> 0 | E35: 90 | G35: =E35*F35 -> 0 | J35: =H35*I35 -> 0 | K35: =D35+G35+J35 -> 0 | N35: Juin | P35: 0
A36: du 11ème au 30ème jour | B36: 108 | D36: =B36*C36 -> 0 | E36: 81 | G36: =E36*F36 -> 0 | J36: =H36*I36 -> 0 | K36: =D36+G36+J36 -> 0 | N36: Juillet | P36: 0
A37: du 31ème au 60ème jour | B37: 96 | D37: =B37*C37 -> 0 | E37: 72 | G37: =E37*F37 -> 0 | J37: =H37*I37 -> 0 | K37: =D37+G37+J37 -> 0 | N37: Août | P37: 0
A38: à partir du 61ème jour | B38: 72 | D38: =B38*C38 -> 0 | E38: 54 | G38: =E38*F38 -> 0 | J38: =H38*I38 -> 0 | K38: =D38+G38+J38 -> 0 | N38: Septembre | P38: 0
I39: Total nuitées | K39: =SUM(K35:K38) -> 0 | N39: Octobre | P39: 0
I40: Total découcher | L40: =D30+K39 -> 0 | N40: Novembre | P40: 0
N41: Décembre | P41: 0
O42: Total | P42: =P41 -> 0
A44: Détail frais de repas
B46: Tarif | C46: Nbre | D46: Total
A47: Repas plein tarif | B47: 20 | D47: =B47*C47 -> 0
A48: Repas self | B48: 10 | D48: =B48*C48 -> 0
A49: Repas frais réels | D49: =B49*C49 -> 0 | I49: Total repas | L49: =D50 -> 0
B50: Total repas | D50: =SUM(D47:D49) -> 0
G53: Total annuel des frais de déplacement | L53: =L49+L40+L24 -> 0

Sheet LISTE DES DIPLOMES EP + DUREE
A1: Code diplôme | B1: Diplôme | C1: Durée réglementaire de la formation en semaines | D1: durée réglementaire de la formation en heures | E1: Durée en mois | F1: DUREE DE PRISE EN CHARGE (EN JOURS POUR FD) | G1: DUREE DE PRISE EN CHARGE (EN MOIS POUR SALAIRES) ARRONDI SUP | H1: nombre mois 1ere année | I1: nombre mois 2ème année | J1: nombre mois 3ème année | K1: nombre mois 4ème année | L1: nombre mois 5ème année | M1: Colonne1
B2: Choisir dans la liste | F2: 0 | G2: 0 | M2: =SUM('LISTE DES DIPLOMES EP + DUREE'!$H2:$L2) -> 0
A3: 2bis | B3: DE aide-soignant 1 540 h | C3: 44 semaines (1540h) décret 10 juin 2021 22semaine théorie+ 22 semaines stage | D3: 1540 | E3: ='LISTE DES DIPLOMES EP + DUREE'!$D3/151.67 -> 10.153623 | F3: 220 | G3: 10.5 | H3: 10.5 | L3: 0
A4: 2 | B4: DE aide-soignant 1 365 h (agent ASHQ) | C4: 39 semaines (1365h) décret 10 juin 2021 | D4: 1365 | E4: ='LISTE DES DIPLOMES EP + DUREE'!$D4/151.67 -> 8.999802202 | F4: 175 | G4: 9 | H4: 9 | L4: 0
A5: 3 | B5: DE cadre de santé | C5: 41 semaines (1435h) | D5: 1435 | E5: ='LISTE DES DIPLOMES EP + DUREE'!$D5/151.67 -> 9.46133052 | F5: 205 | G5: 9.5 | H5: 3.5 | I5: 6 | L5: 0
A6: 6 | B6: DE Formation de l'infirmier en pratique avancée (IPA) | C6: 1549h 4 semestres universitaires | D6: 1549 | E6: ='LISTE DES DIPLOMES EP + DUREE'!$D6/151.67 -> 10.21296235 | F6: 514 | G6: 10.5 | H6: 1.5 | I6: 5.5 | J6: 3.5
A7: 1 | B7: DE IDE | C7: 120 semaines (4200h) 2100h théorie + 2100h de stage | D7: 4200 | E7: ='LISTE DES DIPLOMES EP + DUREE'!$D7/151.67 -> 27.69169908 | F7: 600 | G7: 28 | H7: 3.5 | I7: 9.5 | J7: 9.5 | K7: 5.5 | L7: 0
A8: 5 | B8: DE infirmier anesthésiste | C8: 24 mois (2940h) 2030h théorie +910h de stage | D8: 2940 | E8: ='LISTE DES DIPLOMES EP + DUREE'!$D8/151.67 -> 19.38418936 | F8: 487 | G8: 19.5 | H8: 2.5 | I8: 9 | J8: 8 | L8: 0
A9: 4 | B9: DE infirmier de bloc opératoire | C9: 24 mois (2800h) 1155h théorie + 1645h de stage 09/2022 | D9: 2800 | E9: ='LISTE DES DIPLOMES EP + DUREE'!$D9/151.67 -> 18.46113272 | F9: 487 | G9: 18.5 | H9: 3.5 | I9: 9.5 | J9: 5.5 | L9: 0
A10: 7 | B10: DEAES accompagnant éducatif et social | C10: 39 semaines (1365h) 560h de théorie +805h de stage | D10: 1365 | E10: ='LISTE DES DIPLOMES EP + DUREE'!$D10/151.67 -> 8.999802202 | F10: 195 | G10: 9 | H10: 2.5 | I10: 6.5
A11: 8 | B11: BPJEPS | C11: 45.2 semaines (1582h) | D11: 1582 | E11: =D11/151.67 -> 10.43053999 | F11: 226 | G11: 10.5
A12: 9 | B12: Brevet d'Etat d'animateur technicien de la jeunesse et de l'éducation populaire | D12: 900 | E12: 5.933935518 | F12: =D12/7 -> 128.5714286 | G12: 6 | M12: =SUM('LISTE DES DIPLOMES EP + DUREE'!$H38:$L38) -> 0
A13: 10 | B13: CAFERUIS | C13: 23.4 semaines (820h) 400h théorie+420 stage | D13: 820 | E13: 5.406474583 | F13: 117.1428571 | G13: 5.5 | M13: =SUM('LISTE DES DIPLOMES EP + DUREE'!H13:L13) -> 0
A14: 11 | B14: Capacité orthophoniste | C14: 5 ans (6428h) 3588h de théorie + 2840h de stage | D14: 6428 | E14: 42.38148612 | F14: =D14/7 -> 918.2857143 | G14: 42.5 | M14: =SUM('LISTE DES DIPLOMES EP + DUREE'!H14:L14) -> 0
A15: 12 | B15: CERTIFICAT ORTHOPTISTE | C15: 3368h sur 3 ans 1968h de théorie +1400h de stage | D15: 3368 | E15: 22.20610536 | F15: =D15/7 -> 481.1428571 | G15: 22.5 | M15: =SUM('LISTE DES DIPLOMES EP + DUREE'!H15:L15) -> 0
A16: 13 | B16: DE assistant de service social | C16: 3560h 50 semaines (1740h de théorie +1820h stage | D16: 3560 | E16: 23.4720116 | F16: =D16/7 -> 508.5714286 | G16: 23.5 | M16: =SUM('LISTE DES DIPLOMES EP + DUREE'!H16:L16) -> 0
A17: 14 | B17: DE auxiliaire de puériculture | C17: 44 semaines (1540h) 770h de théorie +770h de satage | D17: 1540 | E17: 10.153623 | F17: =D17/7 -> 220 | G17: 10.5 | M17: =SUM('LISTE DES DIPLOMES EP + DUREE'!H17:L17) -> 0
A18: 15 | B18: DE conseiller en économie sociale | C18: 32 semaines (1100h) 540h de théorie+ 560h de stage | D18: 1100 | E18: =D18/151.67 -> 7.252587855 | F18: =D18/7 -> 157.1428571 | G18: 7.5 | M18: =SUM('LISTE DES DIPLOMES EP + DUREE'!H18:L18) -> 0
A19: 16 | B19: DE éducateur jeunes enfants | C19: 102.8 semaines (3600h) 1500h théorie + 2100h stage | D19: 3600 | E19: 23.73574207 | F19: 514.2857143 | G19: 24 | M19: =SUM('LISTE DES DIPLOMES EP + DUREE'!H19:L19) -> 0
A20: 17 | B20: DE éducateur spécialisé | C20: 102 semaines (3550h) 1450h de théorie+2100h de stage | D20: 3550 | E20: 23.40607899 | F20: 507.1428571 | G20: 23.5 | M20: =SUM('LISTE DES DIPLOMES EP + DUREE'!H20:L20) -> 0
A21: 18 | B21: DE éducateur technique spécialisé | C21: 90 semaines (3160h) 1200h théorie +1960h stage | D21: 3160 | E21: 20.83470693 | F21: 451.4285714 | G21: 21 | M21: =SUM('LISTE DES DIPLOMES EP + DUREE'!H21:L21) -> 0
A22: 19 | B22: DE ergothérapeute | C22: 106 semaines (3714h) | D22: 3714 | E22: 24.4873739 | F22: 530.5714286 | G22: 24.5 | M22: =SUM('LISTE DES DIPLOMES EP + DUREE'!H22:L22) -> 0
A23: 20 | B23: DE manipulateur électroradiologie | C23: 120 semaines (4444h) | D23: 4444 | E23: 29.30045494 | F23: 634.8571429 | G23: 29.5 | M23: =SUM('LISTE DES DIPLOMES EP + DUREE'!H23:L23) -> 0
A24: 21 | B24: DE masseur-kinésithérapeute | C24: Durée 4 années (2 cyles de 2 ans) soit 190 semaines : 6670 h dont 1980 h Cours Magistraux et Travaux Dirigés, 1470 h stages, (3220 h Temps personnel non pris en charge) FD prise en charge durant les heures de CM et TD et stages | D24: 3450 | E24: 22.74675282 | F24: 492.8571429 | G24: 23 | M24: =SUM('LISTE DES DIPLOMES EP + DUREE'!H24:L24) -> 0
A25: 22 | B25: DE moniteur éducateur | C25: 55 semaines (1930h) 950h de théorie +980h de stage | D25: 1930 | E25: 12.72499506 | F25: 275.7142857 | G25: 13 | M25: =SUM('LISTE DES DIPLOMES EP + DUREE'!H25:L25) -> 0
A26: 23 | B26: DE pédicure podologue | C26: 120 semaines (4200h) | D26: 4200 | E26: =D26/151.67 -> 27.69169908 | F26: =D26/7 -> 600 | G26: 28 | M26: =SUM('LISTE DES DIPLOMES EP + DUREE'!H26:L26) -> 0
A27: 24 | B27: DE Préparateur en pharmacie hospitalière | C27: 42 semaines (1360h) | D27: 1360 | E27: =D27/151.67 -> 8.966835894 | F27: =D27/7 -> 194.2857143 | G27: 9 | M27: =SUM('LISTE DES DIPLOMES EP + DUREE'!H27:L27) -> 0
A28: 25 | B28: DE psychomotricien | C28: 72 semaines (2522h) | D28: 2522 | E28: =D28/151.67 -> 16.62820597 | F28: =D28/7 -> 360.2857143 | G28: 17 | M28: =SUM('LISTE DES DIPLOMES EP + DUREE'!H28:L28) -> 0
A29: 26 | B29: DE puéricultrice | C29: 43 semaines (1500h) 790h de théorie +790h de stage | D29: 1500 | E29: =D29/151.67 -> 9.88989253 | F29: =D29/7 -> 214.2857143 | G29: 10 | H29: 2.5 | I29: 7.5 | J29: 0 | K29: 0 | L29: 0 | M29: =SUM('LISTE DES DIPLOMES EP + DUREE'!H29:L29) -> 10
A30: 27 | B30: DE sage-femme | C30: 156 semaines (5460h) | D30: 5460 | E30: 35.99920881 | F30: 780 | G30: 36 | M30: =SUM('LISTE DES DIPLOMES EP + DUREE'!H30:L30) -> 0
A31: 28 | B31: DE technicien en analyse biomédicales | C31: 98 semaines (3423h) | D31: 3423 | E31: 22.56873475 | F31: 489 | G31: 23 | M31: =SUM('LISTE DES DIPLOMES EP + DUREE'!H31:L31) -> 0
A32: 29 | B32: DEJEPS | C32: 34 semaines (1200h) | D32: 1200 | E32: 7.911914024 | F32: 171.4285714 | G32: 8 | M32: =SUM('LISTE DES DIPLOMES EP + DUREE'!H32:L32) -> 0
A33: 30 | B33: Diplôme d'assistant de régulation médicale (ARM) | C33: 46 semaines (1470h) | D33: 1470 | E33: 9.692094679 | F33: 210 | G33: 10 | M33: =SUM('LISTE DES DIPLOMES EP + DUREE'!H33:L33) -> 0
A34: 31 | B34: Master péri natalité | C34: 33 semaines (1140h) | D34: 1140 | E34: 7.516318323 | F34: 162.8571429 | G34: 8 | M34: =SUM('LISTE DES DIPLOMES EP + DUREE'!H34:L34) -> 0

Sheet LISTE DES GRADES ET CATEGORIES (hidden)
A1: Forfaits mensuel par grade ou catégorie
A3: Grade | B3: forfait
A4: Choisir dans la liste
A5: ADJ ADM | B5: 3050
A6: AEQ | B6: 3050
A7: ASHQ | B7: 3050
A8: AS | B8: 3450
A9: AMP | B9: 3450
A10: ACCOMPAGNANT EDUC ET SOCIAL | B10: 3450
A11: AP | B11: 3450
A12: OP | B12: 3450
A13: ASSIST SERV SOCIAL | B13: 3650
A14: EDUC SPE | B14: 3650
A15: PREP PHAR HOSP | B15: 3650
A16: IDE | B16: 3960
A17: IBODE | B17: 3960
A18: Cat. A | B18: 4360
A19: Cat. B | B19: 3650
A20: Cat. C | B20: 3050

Sheet Liste Ets (hidden)
A1: Choisir dans la liste
A2: MID001 CH AX-LES-THERMES
A3: MID003 CHI DES VALLEES DE L'ARIEGE
A4: MID007 EHPAD MIREPOIX
A5: MID010 CH ARIEGE COUSERANS ST GIRONS
A6: MID011 EHPAD ST-LIZIER
A7: MID012 EHPAD SAVERDUN
A8: MID013 CH TARASCON S/ARIEGE
A9: MID014 EHPAD AUBIN
A10: MID015 EHPAD CAPDENAC
A11: MID017 CH DECAZEVILLE
A12: MID018 EHPAD ENTRAYGUES-SUR-TRUYERE
A13: MID019 CHI ESPALION
A14: MID022 EHPAD MUR-DE-BARREZ
A15: MID023 EHPAD RIEUPEYROUX
A16: MID024 CH RODEZ
A17: MID026 CH ST-GENIEZ D'OLT
A18: MID027 EHPAD ST-ROME-DE-TARN
A19: MID028 CHI SALLES LA SOURCE
A20: MID030 CH VILLEFRANCHE DE ROUERGUE
A21: MID031 EHPAD AUTERIVE
A22: MID032 EHPAD CECILE BOUSQUET BESSIERES
A23: MID033 EHPAD BOULOGNE S/GESSE
A24: MID034 EHPAD CARBONNE
A25: MID035 EHPAD GRENADE SUR GARONNE
A26: MID036 EHPAD L'ISLE EN DODON
A27: MID037 CH BAGNERES DE LUCHON
A28: MID038 EHPAD FRONTON
A29: MID040 CH MURET
A30: MID041 CH REVEL
A31: MID042 CH ST-GAUDENS
A32: MID043 EHPAD ST-ORENS DE GAMEVILLE
A33: MID044 CHU TOULOUSE
A34: MID045 CH MARCHANT TOULOUSE
A35: MID046 CDEF TOULOUSE
A36: MID047 EHPAD VILLEMUR S/TARN
A37: MID048 CH AUCH
A38: MID049 CHS GERS AUCH
A39: MID050 CH CONDOM
A40: MID051 EHPAD EAUZE
A41: MID052 EPS LOMAGNE
A42: MID053 CH GIMONT
A43: MID054 EHPAD L'ISLE-JOURDAIN
A44: MID056 CH LOMBEZ SAMATAN
A45: MID057 CH MAUVEZIN
A46: MID058 CH MIRANDE
A47: MID059 CH NOGARO
A48: MID060 CTRE CANT. LAVAL. SAINT-CLAR
A49: MID062 CH VIC FEZENSAC
A50: MID063 CH CAHORS
A51: MID064 CH FIGEAC
A52: MID065 CH GOURDON
A53: MID066 EHPAD MARTEL
A54: MID067 EHPAD MONTCUQ
A55: MID068 EHPAD PRAYSSAC
A56: MID069 CH ST-CERE
A57: MID070 EHPAD SALVIAC
A58: MID071 EHPAD ARGELES-GAZOST
A59: MID072 CH ASTUGUE
A60: MID073 CH BAGNERES DE BIGORRE
A61: MID076 CH LANNEMEZAN
A62: MID079 EHPAD RABASTENS DE BIGORRE
A63: MID080 CH TARBES LOURDES
A64: MID082 CH ALBI
A65: MID083 CHI CASTRES-MAZAMET
A66: MID086 CH GAILLAC
A67: MID087 CH GRAULHET
A68: MID088 CH LAVAUR
A69: MID091 EHPAD RABASTENS
A70: MID092 EHPAD ST-PIERRE DE TRIVISY
A71: MID093 ITEP VIANE
A72: MID094 EHPAD BEAUMONT DE LOMAGNE
A73: MID096 CH CAUSSADE
A74: MID098 EHPAD GRISOLLES
A75: MID099 EHPAD LAGUEPIE
A76: MID101 EHPAD LA MEDIEVALE ARGENTEE
A77: MID102 CHI CASTELSARR.-MOISSAC
A78: MID103 CH MONTAUBAN
A79: MID104 EHPAD MONTECH
A80: MID105 CH NEGREPELISSE
A81: MID106 EHPAD ST-ANTONIN-NOBLE-VAL
A82: MID107 CH VALENCE D'AGEN
A83: MID108 EHPAD VERDUN S/GARONNE
A84: MID109 CDEF CAHORS
A85: MID110 EHPAD LE PASTOUREL BESSIERES
A86: MID113 EPAS 65 CASTELNAU RIVIERE BASSE
A87: MID116 ESAT/FOYER RIEUX-VOLVESTRE
A88: MID118 CDEF MONTAUBAN
A89: MID119 IME CAMPAN
A90: MID121 CH GRAMAT
A91: MID122 FDE ALBI
A92: MID125 EHPAD CAZERES
A93: MID127 EPMS L'HERM
A94: MID128 CDDS RODEZ
A95: MID129 EHPAD PUY-L'EVEQUE
A96: MID130 EHPAD ST CLAR
A97: MID131 FOYER MONFERRAN SAVES
A98: MID132 MDEF AUCH
A99: MID133 CCAS TOULOUSE
A100: MID134 CTMR TOULOUSE
A101: MID135 GIP-MIPIH TOULOUSE
A102: MID137 MDEF ONET-LE-CHATEAU
A103: MID138 MDEF TARBES
A104: MID139 EHPAD RIEUMES
A105: MID141 EHPAD RAMONVILLE
A106: MID142 CH SAINT-PONS-DE-THOMIERES
A107: MID143 EHPAD BARBAZAN
